[Event "*** SCC Grand Prix: Titled Tuesday Blitz"]
[Site "Chess.com"]
[Date "2020.08.11"]
[Round "1"]
[White "Matveev_Vladimir"]
[Black "anon569"]
[Result "0-1"]
[WhiteElo "2655"]
[BlackElo "2346"]
[TimeControl "180+1"]
[EndTime "10:08:08 PDT"]
[Termination "anon569 won by resignation"]

1. d4 {[%clk 0:03:00.9]} 1... Nf6 {[%clk 0:02:59.3]} 2. c4 {[%clk 0:03:00.5]}
2... e6 {[%clk 0:02:58.9]} 3. Nf3 {[%clk 0:03:00.2]} 3... Bb4+ {[%clk
0:02:58.6]} 4. Bd2 {[%clk 0:02:54.8]} 4... c5 {[%clk 0:02:57.8]} 5. g3 {[%clk
0:02:50.5]} 5... Nc6 {[%clk 0:02:57]} 6. Bg2 {[%clk 0:02:48.8]} 6... Qb6 {[%clk
0:02:44.5]} 7. O-O {[%clk 0:02:39.1]} 7... Bxd2 {[%clk 0:02:39]} 8. Nbxd2 {[%clk
0:02:40]} 8... cxd4 {[%clk 0:02:39]} 9. Nb3 {[%clk 0:02:38.1]} 9... e5 {[%clk
0:02:36.9]} 10. c5 {[%clk 0:02:37.1]} 10... Qc7 {[%clk 0:02:33.4]} 11. Nh4
{[%clk 0:02:19.7]} 11... d6 {[%clk 0:01:42.8]} 12. f4 {[%clk 0:01:50.8]} 12...
dxc5 {[%clk 0:01:12.2]} 13. Nxc5 {[%clk 0:01:41.6]} 13... O-O {[%clk 0:00:58.4]}
14. Rc1 {[%clk 0:01:41.2]} 14... Ng4 {[%clk 0:00:49.5]} 15. Qb3 {[%clk
0:01:22.5]} 15... Ne3 {[%clk 0:00:47.5]} 16. Rf2 {[%clk 0:01:17.2]} 16... Nxg2
{[%clk 0:00:45]} 17. Kxg2 {[%clk 0:01:09.2]} 17... b6 {[%clk 0:00:40.2]} 18. Ne4
{[%clk 0:01:02.6]} 18... Bb7 {[%clk 0:00:35.9]} 19. Kg1 {[%clk 0:01:02.5]} 19...
Qd7 {[%clk 0:00:28.4]} 20. Ng5 {[%clk 0:00:36.4]} 20... Na5 {[%clk 0:00:17.5]}
21. Qd3 {[%clk 0:00:33.2]} 21... f5 {[%clk 0:00:07.5]} 22. fxe5 {[%clk
0:00:32.2]} 22... Qd5 {[%clk 0:00:07.5]} 23. Ng2 {[%clk 0:00:32.4]} 23... h6
{[%clk 0:00:06.7]} 24. Nf3 {[%clk 0:00:31.2]} 24... Nc6 {[%clk 0:00:07.2]} 25.
Nf4 {[%clk 0:00:30.9]} 25... Qe4 {[%clk 0:00:06.4]} 26. Qb3+ {[%clk 0:00:29.4]}
26... Kh7 {[%clk 0:00:05.5]} 27. e6 {[%clk 0:00:28.8]} 27... Ne5 {[%clk
0:00:04.8]} 28. Rcf1 {[%clk 0:00:28.3]} 28... Ng4 {[%clk 0:00:04.2]} 29. h3
{[%clk 0:00:24.3]} 29... Nxf2 {[%clk 0:00:03.9]} 30. Rxf2 {[%clk 0:00:25.2]}
30... Rac8 {[%clk 0:00:04.1]} 31. Nd3 {[%clk 0:00:25.6]} 31... Rc6 {[%clk
0:00:03.4]} 32. e7 {[%clk 0:00:25.4]} 32... Re6 {[%clk 0:00:03.9]} 33. Qa3
{[%clk 0:00:19.9]} 33... Re8 {[%clk 0:00:03.5]} 34. Qxa7 {[%clk 0:00:19.7]}
34... Rg6 {[%clk 0:00:03.7]} 35. Kg2 {[%clk 0:00:19]} 35... Rxe7 {[%clk
0:00:04.3]} 36. Qxb6 {[%clk 0:00:18.9]} 36... f4 {[%clk 0:00:04.6]} 37. Qxd4
{[%clk 0:00:16.4]} 37... Rxg3+ {[%clk 0:00:03.1]} 38. Kf1 {[%clk 0:00:17]} 38...
Qxd4 {[%clk 0:00:03.7]} 39. Nxd4 {[%clk 0:00:17.9]} 39... Rxh3 {[%clk
0:00:04.2]} 40. Ke1 {[%clk 0:00:16.8]} 40... Rxd3 {[%clk 0:00:04.2]} 41. Nf5
{[%clk 0:00:15.7]} 41... Re5 {[%clk 0:00:04.5]} 42. Nh4 {[%clk 0:00:15.2]} 42...
Rd8 {[%clk 0:00:05.1]} 43. Rxf4 {[%clk 0:00:15.6]} 43... Rb5 {[%clk 0:00:05.5]}
44. Kf2 {[%clk 0:00:15.4]} 44... Bd5 {[%clk 0:00:06]} 45. Nf5 {[%clk 0:00:16.3]}
45... Rxb2 {[%clk 0:00:06.3]} 46. Rd4 {[%clk 0:00:16.3]} 46... Be6 {[%clk
0:00:06.7]} 47. Rxd8 {[%clk 0:00:16.1]} 47... Bxf5 {[%clk 0:00:07.3]} 48. a4
{[%clk 0:00:16.7]} 48... Ra2 {[%clk 0:00:07.9]} 49. Rd4 {[%clk 0:00:16.2]} 49...
Bc2 {[%clk 0:00:08.3]} 50. Rd2 {[%clk 0:00:15.3]} 50... Bb3 {[%clk 0:00:07.7]}
51. Rd3 {[%clk 0:00:15.3]} 51... Bxa4 {[%clk 0:00:07.9]} 52. Rd4 {[%clk
0:00:16]} 52... Bb5 {[%clk 0:00:08.1]} 53. Re4 {[%clk 0:00:16.6]} 53... Bxe2
{[%clk 0:00:07.9]} 54. Rxe2 {[%clk 0:00:16.9]} 54... Rxe2+ {[%clk 0:00:08.5]}
55. Kxe2 {[%clk 0:00:17.8]} 55... Kg6 {[%clk 0:00:09.1]} 0-1

[Event "*** SCC Grand Prix: Titled Tuesday Blitz"]
[Site "Chess.com"]
[Date "2020.08.11"]
[Round "1"]
[White "tptagain"]
[Black "vova-79"]
[Result "0-1"]
[WhiteElo "2926"]
[BlackElo "2456"]
[TimeControl "180+1"]
[EndTime "10:08:09 PDT"]
[Termination "vova-79 won by resignation"]

1. Nf3 {[%clk 0:03:00.9]} 1... d5 {[%clk 0:02:58.3]} 2. g3 {[%clk 0:03:00.9]}
2... c6 {[%clk 0:02:57.8]} 3. Bg2 {[%clk 0:03:00.9]} 3... Bg4 {[%clk 0:02:57.9]}
4. O-O {[%clk 0:03:00.4]} 4... Nd7 {[%clk 0:02:57]} 5. d3 {[%clk 0:03:00.5]}
5... e6 {[%clk 0:02:56.5]} 6. e4 {[%clk 0:02:58.6]} 6... Bd6 {[%clk 0:02:56.3]}
7. h3 {[%clk 0:02:57.5]} 7... Bh5 {[%clk 0:02:53.1]} 8. exd5 {[%clk 0:02:56.4]}
8... cxd5 {[%clk 0:02:51.6]} 9. c4 {[%clk 0:02:55.2]} 9... Ne7 {[%clk
0:02:50.3]} 10. Nc3 {[%clk 0:02:53.6]} 10... O-O {[%clk 0:02:47.3]} 11. cxd5
{[%clk 0:02:53]} 11... Nxd5 {[%clk 0:02:46.3]} 12. Nxd5 {[%clk 0:02:45.7]} 12...
exd5 {[%clk 0:02:47.2]} 13. Qb3 {[%clk 0:02:45.4]} 13... Nc5 {[%clk 0:02:36.3]}
14. Qxd5 {[%clk 0:02:40.3]} 14... Bg6 {[%clk 0:02:36.2]} 15. d4 {[%clk
0:01:55.8]} 15... Be4 {[%clk 0:02:31.4]} 16. Qg5 {[%clk 0:01:43.4]} 16... Nd3
{[%clk 0:01:52.2]} 17. Be3 {[%clk 0:01:40.4]} 17... Nxb2 {[%clk 0:01:39.2]} 18.
Qb5 {[%clk 0:01:16]} 18... Qb6 {[%clk 0:01:26.9]} 19. Qxb6 {[%clk 0:01:09.9]}
19... axb6 {[%clk 0:01:27.8]} 20. Nd2 {[%clk 0:01:03.9]} 20... Bxg2 {[%clk
0:01:03]} 21. Kxg2 {[%clk 0:01:04.8]} 21... Rfc8 {[%clk 0:00:59]} 22. Rfc1
{[%clk 0:00:38.7]} 22... h6 {[%clk 0:00:55.5]} 23. Ne4 {[%clk 0:00:37.8]} 23...
Ba3 {[%clk 0:00:49.6]} 24. d5 {[%clk 0:00:28.9]} 24... b5 {[%clk 0:00:49.2]} 25.
Rxc8+ {[%clk 0:00:24.8]} 25... Rxc8 {[%clk 0:00:48.6]} 26. Rb1 {[%clk
0:00:22.5]} 26... f5 {[%clk 0:00:38]} 27. Nd2 {[%clk 0:00:20.7]} 27... Rc2
{[%clk 0:00:38.4]} 28. Nf3 {[%clk 0:00:19.3]} 28... Nc4 {[%clk 0:00:31.1]} 29.
Bf4 {[%clk 0:00:19]} 29... g5 {[%clk 0:00:28.1]} 30. Bc7 {[%clk 0:00:18.2]}
30... Ne3+ {[%clk 0:00:22.1]} 31. Kg1 {[%clk 0:00:18.3]} 31... Nxd5 {[%clk
0:00:23]} 32. Be5 {[%clk 0:00:17.4]} 32... Rc1+ {[%clk 0:00:20.4]} 33. Rxc1
{[%clk 0:00:17.3]} 33... Bxc1 {[%clk 0:00:21.3]} 34. Nd4 {[%clk 0:00:17.7]}
34... Nb4 {[%clk 0:00:20.5]} 35. Nxf5 {[%clk 0:00:15.4]} 35... Nxa2 {[%clk
0:00:20.3]} 36. Nxh6+ {[%clk 0:00:15.4]} 36... Kh7 {[%clk 0:00:19.8]} 37. Nf5
{[%clk 0:00:15.5]} 37... b4 {[%clk 0:00:18]} 38. Nd6 {[%clk 0:00:15.1]} 38... b3
{[%clk 0:00:17.4]} 39. Nc4 {[%clk 0:00:10.4]} 39... b5 {[%clk 0:00:16.7]} 40.
Nb2 {[%clk 0:00:10.3]} 40... Bxb2 {[%clk 0:00:15.7]} 41. Bxb2 {[%clk 0:00:11.2]}
41... Nb4 {[%clk 0:00:15.9]} 42. Kf1 {[%clk 0:00:10.9]} 42... Nd3 {[%clk
0:00:16.3]} 43. Bd4 {[%clk 0:00:10.4]} 43... b2 {[%clk 0:00:16.2]} 44. Bxb2
{[%clk 0:00:11]} 44... Nxb2 {[%clk 0:00:16.7]} 45. Ke2 {[%clk 0:00:11.9]} 45...
b4 {[%clk 0:00:16.7]} 46. Kd2 {[%clk 0:00:12.1]} 46... Na4 {[%clk 0:00:16.4]}
47. Kc2 {[%clk 0:00:12.5]} 47... Nc5 {[%clk 0:00:16.2]} 48. f3 {[%clk
0:00:12.3]} 48... Kg6 {[%clk 0:00:16.3]} 49. Kb2 {[%clk 0:00:12.7]} 49... Kf5
{[%clk 0:00:16.3]} 50. Kc2 {[%clk 0:00:13.3]} 50... Ke5 {[%clk 0:00:16.7]} 51.
Kb2 {[%clk 0:00:13.5]} 51... Kd4 {[%clk 0:00:17]} 52. h4 {[%clk 0:00:14.2]}
52... gxh4 {[%clk 0:00:16.6]} 53. gxh4 {[%clk 0:00:15.1]} 53... Kc4 {[%clk
0:00:16.6]} 54. h5 {[%clk 0:00:15.4]} 54... Ne6 {[%clk 0:00:17]} 55. h6 {[%clk
0:00:15.6]} 55... Nf8 {[%clk 0:00:16.9]} 56. f4 {[%clk 0:00:15.5]} 56... Nh7
{[%clk 0:00:17.4]} 57. f5 {[%clk 0:00:15.4]} 57... b3 {[%clk 0:00:17.3]} 58. Kb1
{[%clk 0:00:15.4]} 58... Kc3 {[%clk 0:00:17.2]} 59. Kc1 {[%clk 0:00:15.8]} 59...
b2+ {[%clk 0:00:16.6]} 60. Kb1 {[%clk 0:00:16.3]} 60... Kb3 {[%clk 0:00:16.6]}
61. f6 {[%clk 0:00:16.6]} 61... Nxf6 {[%clk 0:00:16.5]} 62. h7 {[%clk
0:00:17.2]} 62... Nd5 {[%clk 0:00:15.9]} 63. h8=Q {[%clk 0:00:17.4]} 63... Nc3+
{[%clk 0:00:16.8]} 64. Qxc3+ {[%clk 0:00:17.6]} 64... Kxc3 {[%clk 0:00:17.3]}
65. Ka2 {[%clk 0:00:18.3]} 65... Kc2 {[%clk 0:00:17.9]} 66. Ka3 {[%clk 0:00:19]}
66... b1=Q {[%clk 0:00:18.6]} 0-1

[Event "*** SCC Grand Prix: Titled Tuesday Blitz"]
[Site "Chess.com"]
[Date "2020.08.11"]
[Round "1"]
[White "Yoshikrov"]
[Black "BursaBBSatranc"]
[Result "0-1"]
[WhiteElo "2141"]
[BlackElo "2512"]
[TimeControl "180+1"]
[EndTime "10:08:11 PDT"]
[Termination "BursaBBSatranc won on time"]

1. e4 {[%clk 0:02:59.8]} 1... e5 {[%clk 0:02:59.8]} 2. Nf3 {[%clk 0:02:59.2]}
2... Nf6 {[%clk 0:02:55.1]} 3. Nxe5 {[%clk 0:02:58.8]} 3... d6 {[%clk
0:02:54.9]} 4. Nf3 {[%clk 0:02:58.8]} 4... Nxe4 {[%clk 0:02:48]} 5. Nc3 {[%clk
0:02:58.8]} 5... Nxc3 {[%clk 0:02:47.7]} 6. dxc3 {[%clk 0:02:59.7]} 6... Be7
{[%clk 0:02:47.7]} 7. Bd3 {[%clk 0:02:59.7]} 7... O-O {[%clk 0:02:47.3]} 8. Be3
{[%clk 0:02:59.8]} 8... Nc6 {[%clk 0:02:47.2]} 9. Qd2 {[%clk 0:02:59.6]} 9...
Be6 {[%clk 0:02:45.1]} 10. O-O-O {[%clk 0:02:58.9]} 10... Qd7 {[%clk 0:02:26.3]}
11. Kb1 {[%clk 0:02:58.2]} 11... Rfe8 {[%clk 0:02:23.2]} 12. Rhe1 {[%clk
0:02:57.7]} 12... Bf6 {[%clk 0:02:18.4]} 13. h3 {[%clk 0:02:55.4]} 13... Bf5
{[%clk 0:01:54.4]} 14. Bxf5 {[%clk 0:02:46.1]} 14... Qxf5 {[%clk 0:01:54.2]} 15.
Nd4 {[%clk 0:02:46.1]} 15... Bxd4 {[%clk 0:01:52.3]} 16. cxd4 {[%clk 0:02:44.8]}
16... Qd5 {[%clk 0:01:44.5]} 17. g3 {[%clk 0:02:34.8]} 17... Re4 {[%clk
0:01:41.3]} 18. Qd3 {[%clk 0:02:14.2]} 18... b5 {[%clk 0:01:18.9]} 19. Qb3
{[%clk 0:01:52.2]} 19... Qxb3 {[%clk 0:01:02.5]} 20. axb3 {[%clk 0:01:50.9]}
20... Rae8 {[%clk 0:01:02.8]} 21. c3 {[%clk 0:01:45]} 21... d5 {[%clk
0:00:56.5]} 22. Bd2 {[%clk 0:01:38.9]} 22... f5 {[%clk 0:00:48.2]} 23. Rxe4
{[%clk 0:01:36.7]} 23... fxe4 {[%clk 0:00:48]} 24. Kc2 {[%clk 0:01:34.8]} 24...
Rf8 {[%clk 0:00:39.9]} 25. Be3 {[%clk 0:01:33.7]} 25... Kf7 {[%clk 0:00:31.9]}
26. Ra1 {[%clk 0:01:32.2]} 26... Ke6 {[%clk 0:00:31.1]} 27. Ra5 {[%clk
0:01:23.1]} 27... Rb8 {[%clk 0:00:26.3]} 28. Ra1 {[%clk 0:01:19.8]} 28... Kd7
{[%clk 0:00:24.8]} 29. Rd1 {[%clk 0:01:12.5]} 29... Rf8 {[%clk 0:00:23.6]} 30.
Ra1 {[%clk 0:01:12]} 30... h6 {[%clk 0:00:22.7]} 31. h4 {[%clk 0:01:10.6]} 31...
h5 {[%clk 0:00:20.5]} 32. Rd1 {[%clk 0:01:07.8]} 32... g6 {[%clk 0:00:19.6]} 33.
Ra1 {[%clk 0:01:06.8]} 33... Ra8 {[%clk 0:00:18.5]} 34. Rd1 {[%clk 0:01:05.9]}
34... a5 {[%clk 0:00:18.3]} 35. Ra1 {[%clk 0:01:05.3]} 35... Rf8 {[%clk
0:00:18.5]} 36. Rd1 {[%clk 0:01:02.3]} 36... Ke6 {[%clk 0:00:18.9]} 37. Kd2
{[%clk 0:00:56.2]} 37... a4 {[%clk 0:00:16.9]} 38. bxa4 {[%clk 0:00:55.7]} 38...
bxa4 {[%clk 0:00:17.8]} 39. Ra1 {[%clk 0:00:55]} 39... Rb8 {[%clk 0:00:17.6]}
40. Kc2 {[%clk 0:00:54.3]} 40... Ra8 {[%clk 0:00:18]} 41. Re1 {[%clk 0:00:28.2]}
41... Na5 {[%clk 0:00:16.5]} 42. Rf1 {[%clk 0:00:18.3]} 42... Nc4 {[%clk
0:00:16]} 43. Bc1 {[%clk 0:00:16.2]} 43... Rf8 {[%clk 0:00:15.8]} 44. b3 {[%clk
0:00:11.4]} 44... axb3+ {[%clk 0:00:15.1]} 45. Kxb3 {[%clk 0:00:11.7]} 45... Rf3
{[%clk 0:00:10.4]} 46. Kb4 {[%clk 0:00:09.5]} 46... Kd6 {[%clk 0:00:09.5]} 47.
Bf4+ {[%clk 0:00:09.6]} 47... Kd7 {[%clk 0:00:09.3]} 48. Kc5 {[%clk 0:00:09.6]}
48... c6 {[%clk 0:00:09.9]} 49. Kb4 {[%clk 0:00:08.2]} 49... e3 {[%clk 0:00:09]}
50. Ra1 {[%clk 0:00:05.1]} 50... exf2 {[%clk 0:00:09]} 51. Ra7+ {[%clk
0:00:05.3]} 51... Ke6 {[%clk 0:00:09.4]} 0-1

[Event "*** SCC Grand Prix: Titled Tuesday Blitz"]
[Site "Chess.com"]
[Date "2020.08.11"]
[Round "1"]
[White "PavlovDanila"]
[Black "Lysiak_Poltorak"]
[Result "1/2-1/2"]
[WhiteElo "2671"]
[BlackElo "2344"]
[TimeControl "180+1"]
[EndTime "10:08:16 PDT"]
[Termination "Game drawn by repetition"]

1. e4 {[%clk 0:02:59.5]} 1... c5 {[%clk 0:03:00.1]} 2. Nf3 {[%clk 0:02:58.9]}
2... Nc6 {[%clk 0:03:00.7]} 3. d4 {[%clk 0:02:59.4]} 3... cxd4 {[%clk
0:03:01.6]} 4. Nxd4 {[%clk 0:02:59.8]} 4... Nf6 {[%clk 0:03:02.4]} 5. Nc3 {[%clk
0:03:00.1]} 5... e5 {[%clk 0:03:03]} 6. Ndb5 {[%clk 0:03:00.4]} 6... d6 {[%clk
0:03:03.5]} 7. Bg5 {[%clk 0:03:00.1]} 7... a6 {[%clk 0:03:02.2]} 8. Na3 {[%clk
0:02:59.9]} 8... b5 {[%clk 0:03:02.7]} 9. Nd5 {[%clk 0:02:59.9]} 9... Be7 {[%clk
0:03:02.9]} 10. Bxf6 {[%clk 0:03:00.3]} 10... Bxf6 {[%clk 0:03:03.8]} 11. c3
{[%clk 0:02:59.7]} 11... Ne7 {[%clk 0:03:03.9]} 12. Nxe7 {[%clk 0:02:54.3]}
12... Bxe7 {[%clk 0:03:01.4]} 13. Nc2 {[%clk 0:02:54.3]} 13... Bb7 {[%clk
0:03:01.2]} 14. Bd3 {[%clk 0:02:47.8]} 14... d5 {[%clk 0:03:01.2]} 15. Qe2
{[%clk 0:02:47.2]} 15... O-O {[%clk 0:02:56.3]} 16. Rd1 {[%clk 0:02:44.2]} 16...
dxe4 {[%clk 0:02:44.2]} 17. Bxe4 {[%clk 0:02:41.3]} 17... Qb6 {[%clk 0:02:41.9]}
18. O-O {[%clk 0:02:40]} 18... Bxe4 {[%clk 0:02:39.8]} 19. Qxe4 {[%clk
0:02:40.9]} 19... Qe6 {[%clk 0:02:40]} 20. Ne3 {[%clk 0:02:38.8]} 20... Rfd8
{[%clk 0:02:38.2]} 21. Nd5 {[%clk 0:02:30.8]} 21... Rac8 {[%clk 0:02:28.4]} 22.
Rfe1 {[%clk 0:02:27.2]} 22... Bd6 {[%clk 0:02:12]} 23. Rd2 {[%clk 0:01:45.8]}
23... f5 {[%clk 0:02:08.5]} 24. Qe2 {[%clk 0:01:42.6]} 24... e4 {[%clk
0:02:00.7]} 25. Red1 {[%clk 0:01:41.2]} 25... Bc5 {[%clk 0:01:50.3]} 26. Kh1
{[%clk 0:01:25.8]} 26... Rd6 {[%clk 0:01:35.1]} 27. b3 {[%clk 0:01:14.7]} 27...
Rcd8 {[%clk 0:01:32.2]} 28. c4 {[%clk 0:01:14.6]} 28... bxc4 {[%clk 0:01:19]}
29. Qxc4 {[%clk 0:00:54.5]} 29... Ba3 {[%clk 0:00:40.7]} 30. Ne7+ {[%clk
0:00:46.5]} 30... Kf7 {[%clk 0:00:40.6]} 31. Rxd6 {[%clk 0:00:46]} 31... Rxd6
{[%clk 0:00:40.9]} 32. Rxd6 {[%clk 0:00:45.5]} 32... Qxc4 {[%clk 0:00:41.3]} 33.
bxc4 {[%clk 0:00:45]} 33... Bxd6 {[%clk 0:00:39.5]} 34. Nxf5 {[%clk 0:00:45]}
34... Bc5 {[%clk 0:00:39.7]} 35. Ng3 {[%clk 0:00:36]} 35... Bxf2 {[%clk
0:00:13.4]} 36. Nxe4 {[%clk 0:00:35.7]} 36... Bd4 {[%clk 0:00:14.1]} 37. g3
{[%clk 0:00:34.9]} 37... Ke6 {[%clk 0:00:14]} 38. Kg2 {[%clk 0:00:34.8]} 38...
Ke5 {[%clk 0:00:13.8]} 39. Kf3 {[%clk 0:00:34.8]} 39... g6 {[%clk 0:00:13.8]}
40. g4 {[%clk 0:00:25.8]} 40... Bg1 {[%clk 0:00:13.6]} 41. h3 {[%clk 0:00:20.4]}
41... Kd4 {[%clk 0:00:13.8]} 42. Nd2 {[%clk 0:00:13.3]} 42... Bh2 {[%clk
0:00:12]} 43. Ke2 {[%clk 0:00:08.7]} 43... Bf4 {[%clk 0:00:11]} 44. Kd1 {[%clk
0:00:04.1]} 44... Bxd2 {[%clk 0:00:10.5]} 45. Kxd2 {[%clk 0:00:05]} 45... Kxc4
{[%clk 0:00:11.1]} 46. Kc2 {[%clk 0:00:05.9]} 46... a5 {[%clk 0:00:09.7]} 47. a3
{[%clk 0:00:04.9]} 47... a4 {[%clk 0:00:09.6]} 48. g5 {[%clk 0:00:04.6]} 48...
Kd4 {[%clk 0:00:09.5]} 49. Kd2 {[%clk 0:00:04.8]} 49... Kc4 {[%clk 0:00:07.6]}
50. Kc2 {[%clk 0:00:05.1]} 50... Kd4 {[%clk 0:00:08]} 51. Kd2 {[%clk 0:00:05.3]}
51... Kc4 {[%clk 0:00:05]} 52. Kc2 {[%clk 0:00:05.8]} 1/2-1/2

[Event "*** SCC Grand Prix: Titled Tuesday Blitz"]
[Site "Chess.com"]
[Date "2020.08.11"]
[Round "1"]
[White "LuisFSiles"]
[Black "Karateloru"]
[Result "1-0"]
[WhiteElo "2322"]
[BlackElo "2634"]
[TimeControl "180+1"]
[EndTime "10:08:17 PDT"]
[Termination "LuisFSiles won on time"]

1. e4 {[%clk 0:02:59.1]} 1... c5 {[%clk 0:01:35.7]} 2. c3 {[%clk 0:02:57.1]}
2... Nc6 {[%clk 0:01:35.9]} 3. d4 {[%clk 0:02:56.3]} 3... cxd4 {[%clk
0:01:35.5]} 4. cxd4 {[%clk 0:02:56.3]} 4... d5 {[%clk 0:01:34.2]} 5. exd5 {[%clk
0:02:52.1]} 5... Qxd5 {[%clk 0:01:35.1]} 6. Nf3 {[%clk 0:02:50]} 6... e6 {[%clk
0:01:28.1]} 7. a3 {[%clk 0:02:44.9]} 7... Nf6 {[%clk 0:01:27.6]} 8. Nc3 {[%clk
0:02:43.8]} 8... Qd8 {[%clk 0:01:28.1]} 9. Bd3 {[%clk 0:02:35.8]} 9... Be7
{[%clk 0:01:27.6]} 10. O-O {[%clk 0:02:34.3]} 10... O-O {[%clk 0:01:27.5]} 11.
Bc2 {[%clk 0:02:27.3]} 11... b6 {[%clk 0:01:26.5]} 12. Qd3 {[%clk 0:02:26.4]}
12... Bb7 {[%clk 0:01:25.9]} 13. Bg5 {[%clk 0:02:23.7]} 13... g6 {[%clk
0:01:26]} 14. Bh6 {[%clk 0:02:19.6]} 14... Re8 {[%clk 0:01:24.1]} 15. Rad1
{[%clk 0:02:20]} 15... Rc8 {[%clk 0:01:21.7]} 16. Bb3 {[%clk 0:02:16.1]} 16...
Na5 {[%clk 0:01:20.9]} 17. Ba2 {[%clk 0:02:15.8]} 17... Nd5 {[%clk 0:01:20.8]}
18. Ne4 {[%clk 0:02:11.1]} 18... Bf8 {[%clk 0:01:13.1]} 19. Bg5 {[%clk
0:02:04.5]} 19... f6 {[%clk 0:01:11.5]} 20. Bxd5 {[%clk 0:01:53.6]} 20... fxg5
{[%clk 0:01:11]} 21. Ba2 {[%clk 0:01:50.4]} 21... h6 {[%clk 0:01:05.7]} 22.
Nexg5 {[%clk 0:01:28.8]} 22... hxg5 {[%clk 0:01:05.3]} 23. Qxg6+ {[%clk
0:01:28.6]} 23... Bg7 {[%clk 0:01:05.8]} 24. Nxg5 {[%clk 0:01:22.5]} 24... Qf6
{[%clk 0:01:05.7]} 25. Qh7+ {[%clk 0:00:48.2]} 25... Kf8 {[%clk 0:01:05.2]} 26.
Qh5 {[%clk 0:00:48.7]} 26... Kg8 {[%clk 0:00:58.8]} 27. Qh7+ {[%clk 0:00:32.4]}
27... Kf8 {[%clk 0:00:58.8]} 28. Qh5 {[%clk 0:00:32.7]} 28... Qf5 {[%clk
0:00:47.8]} 29. Bxe6 {[%clk 0:00:25]} 29... Rxe6 {[%clk 0:00:43]} 30. Nh7+
{[%clk 0:00:24.7]} 30... Qxh7 {[%clk 0:00:43.5]} 31. Qxh7 {[%clk 0:00:24.9]}
31... Kf7 {[%clk 0:00:39.6]} 32. d5 {[%clk 0:00:24.2]} 32... Rg6 {[%clk
0:00:39.1]} 33. Qh5 {[%clk 0:00:24.3]} 33... Rd8 {[%clk 0:00:36.2]} 34. f4
{[%clk 0:00:19]} 34... Rh8 {[%clk 0:00:19.3]} 35. Qf5+ {[%clk 0:00:16.9]} 35...
Rf6 {[%clk 0:00:18.5]} 36. Qd7+ {[%clk 0:00:16.8]} 36... Kg6 {[%clk 0:00:18.9]}
37. f5+ {[%clk 0:00:16.8]} 37... Kh6 {[%clk 0:00:18.5]} 38. g4 {[%clk
0:00:16.9]} 38... Rg8 {[%clk 0:00:17.6]} 39. h4 {[%clk 0:00:16.4]} 39... Rff8
{[%clk 0:00:11.9]} 40. g5+ {[%clk 0:00:16.3]} 40... Kh5 {[%clk 0:00:12]} 41. f6
{[%clk 0:00:15.6]} 41... Bxf6 {[%clk 0:00:12]} 42. Qh7+ {[%clk 0:00:14.3]} 42...
Kg4 {[%clk 0:00:10.6]} 43. Rxf6 {[%clk 0:00:13.6]} 43... Nc4 {[%clk 0:00:08.9]}
44. Qf5+ {[%clk 0:00:13.2]} 44... Kg3 {[%clk 0:00:08]} 45. Qf4+ {[%clk 0:00:13]}
45... Kh3 {[%clk 0:00:08]} 46. Qf3+ {[%clk 0:00:12.6]} 46... Kxh4 {[%clk
0:00:08]} 47. Rh6+ {[%clk 0:00:11.9]} 47... Kxg5 {[%clk 0:00:08.2]} 48. Qh5+
{[%clk 0:00:11.1]} 48... Kf4+ {[%clk 0:00:08.2]} 49. Kh1 {[%clk 0:00:11.3]}
49... Rg5 {[%clk 0:00:06.7]} 50. Rf1+ {[%clk 0:00:09]} 50... Ke3 {[%clk
0:00:07]} 51. Qxg5+ {[%clk 0:00:08.6]} 51... Ke2 {[%clk 0:00:06.9]} 52. Rxf8
{[%clk 0:00:08.6]} 52... Ne3 {[%clk 0:00:07.4]} 53. Rh2+ {[%clk 0:00:08.3]}
53... Kd3 {[%clk 0:00:07]} 54. Rh3 {[%clk 0:00:07.9]} 54... Bxd5+ {[%clk
0:00:06.6]} 55. Kg1 {[%clk 0:00:08.1]} 1-0